fUST/lending_fUST_20250627
["ID","MTS","AMOUNT","RATE_DAILY","PERIOD"]
[368141065,1751037039750,-460.0,0.00019178,2]
[368141067,1751037039760,-460.0,0.00019178,2]
[368141069,1751037039770,-460.0,0.00019178,2]
[368141072,1751037039780,-460.0,0.00019178,2]
[368141074,1751037039790,-460.0,0.00019178,2]
[368141076,1751037039800,-460.0,0.00019178,2]
[368141078,1751037039810,-460.0,0.00019178,2]
[368141080,1751037039820,-460.0,0.00019178,2]
[368141082,1751037039830,-460.0,0.00019178,2]
[368141084,1751037039840,-460.0,0.00019178,2]
[368141086,1751037039849,-271.74069443,0.00019178,2]
[368141088,1751037039860,-460.0,0.00019178,2]
[368141090,1751037039870,-935.0,0.00019178,2]
[368141092,1751037039880,-460.0,0.00019178,2]
[368141094,1751037039890,-460.0,0.00019178,2]
[368141097,1751037039901,-460.0,0.00019178,2]
[368141099,1751037039911,-461.46956662,0.00019178,2]
[368141101,1751037039921,-460.0,0.00019178,2]
[368141103,1751037039931,-460.0,0.00019178,2]
[368141105,1751037039940,-460.0,0.00019178,2]
[368141107,1751037039950,-460.0,0.00019178,2]
[368141109,1751037039960,-460.0,0.00019178,2]
[368141111,1751037039971,-460.0,0.00019178,2]
[368141113,1751037039980,-1211.91,0.00019178,2]
[368141115,1751037039990,-460.0,0.00019178,2]
[368141117,1751037040004,-522.14,0.00019178,2]
[368141119,1751037040014,-460.0,0.00019178,2]
[368141122,1751037040023,-460.0,0.00019178,2]
[368141124,1751037040033,-460.0,0.00019178,2]
[368141126,1751037040043,-1142.35,0.00019178,2]
[368141128,1751037040053,-2637.29,0.00019178,2]
[368141130,1751037040063,-460.0,0.00019178,2]
[368141131,1751037040072,-460.0,0.00019178,2]
[368141134,1751037040082,-460.0,0.00019178,2]
[368141136,1751037040091,-460.0,0.00019178,2]
[368141138,1751037040102,-406.32614582,0.00019178,2]
[368141140,1751037040112,-460.0,0.00019178,2]
[368141142,1751037040122,-460.0,0.00019178,2]
[368141163,1751037040308,-637.29,0.00019178,2]
[368141166,1751037040319,-514.1,0.00019178,2]
[368141168,1751037040329,-460.0,0.00019178,2]
[368141170,1751037040338,-460.0,0.00019178,2]
[368141172,1751037040348,-460.0,0.00019178,2]
[368141174,1751037040357,-460.0,0.00019178,2]
[368141176,1751037040367,-460.0,0.00019178,2]
[368141178,1751037040377,-460.0,0.00019178,2]
[368141180,1751037040387,-460.0,0.00019178,2]
[368141182,1751037040398,-460.0,0.00019178,2]
[368141184,1751037040411,-460.0,0.00019178,2]
[368141186,1751037040422,-460.0,0.00019178,2]
[368141188,1751037040431,-460.0,0.00019178,2]
[368141190,1751037040441,-460.0,0.00019178,2]
[368141192,1751037040451,-460.0,0.00019178,2]
[368141194,1751037040460,-460.0,0.00019178,2]
[368141196,1751037040469,-460.0,0.00019178,2]
[368141198,1751037040479,-460.0,0.00019178,2]
[368141200,1751037040488,-460.0,0.00019178,2]
[368141202,1751037040498,-1343.81,0.00019178,2]
[368141204,1751037040508,-460.0,0.00019178,2]
[368141206,1751037040517,-460.0,0.00019178,2]
[368141208,1751037040526,-462.27,0.00019178,2]
[368141210,1751037040535,-215.73370953,0.00019178,2]
[368141212,1751037040545,-459.40806034,0.00019178,2]
[368141214,1751037040556,-460.0,0.00019178,2]
[368141216,1751037040565,-500.0,0.00019178,2]
[368141218,1751037040577,-455.00995715,0.00019178,2]
[368141220,1751037040586,-460.0,0.00019178,2]
[368141223,1751037040596,-460.0,0.00019178,2]
[368141225,1751037040605,-500.0,0.00019178,2]
[368141227,1751037040615,-460.0,0.00019178,2]
[368141229,1751037040624,-575.82,0.00019178,2]
[368141231,1751037040633,-460.0,0.00019178,2]
[368141233,1751037040643,-460.0,0.00019178,2]
[368141235,1751037040652,-460.0,0.00019178,2]
[368141237,1751037040661,-650.15,0.00019178,2]
[368141239,1751037040671,-650.15,0.00019178,2]
[368141241,1751037040680,-650.15,0.00019178,2]
[368141243,1751037040690,-460.0,0.00019178,2]
[368141244,1751037040699,-460.0,0.00019178,2]
[368141247,1751037040709,-650.15,0.00019178,2]
[368141249,1751037040719,-460.0,0.00019178,2]
[368141251,1751037040729,-460.0,0.00019178,2]
[368141253,1751037040738,-460.0,0.00019178,2]
[368141255,1751037040747,-460.0,0.00019178,2]
[368141257,1751037040756,-460.0,0.00019178,2]
[368141259,1751037040766,-460.0,0.00019178,2]
[368141261,1751037040776,-576.2,0.00019178,2]
[368141263,1751037040785,-460.0,0.00019178,2]
[368141265,1751037040795,-460.0,0.00019178,2]
[368141267,1751037040804,-460.0,0.00019178,2]
[368141269,1751037040814,-1445.24,0.00019178,2]
[368141271,1751037040823,-571.9,0.00019178,2]
[368141273,1751037040833,-500.0,0.00019178,2]
[368141275,1751037040843,-460.0,0.00019178,2]
[368141277,1751037040852,-460.0,0.00019178,2]
[368141279,1751037040861,-460.0,0.00019178,2]
[368141281,1751037040871,-460.0,0.00019178,2]
[368141283,1751037040880,-460.0,0.00019178,2]
[368141285,1751037040889,-2195.56,0.00019178,2]
[368141287,1751037040898,-1640.62,0.00019178,2]
[368141289,1751037040908,-460.0,0.00019178,2]
[368141291,1751037040918,-460.0,0.00019178,2]
[368141293,1751037040927,-460.0,0.00019178,2]
[368141295,1751037040936,-460.0,0.00019178,2]
[368141297,1751037040946,-460.0,0.00019178,2]
[368141299,1751037040955,-460.0,0.00019178,2]
[368141301,1751037040966,-386.11170303,0.00019178,2]
[368141303,1751037040975,-460.0,0.00019178,2]
[368141305,1751037040984,-460.0,0.00019178,2]
[368141307,1751037040993,-460.0,0.00019178,2]
[368141309,1751037041003,-460.0,0.00019178,2]
[368141311,1751037041012,-460.0,0.00019178,2]
[368141313,1751037041022,-437.5163436,0.00019178,2]
[368141315,1751037041032,-468.05,0.00019178,2]
[368141317,1751037041041,-460.0,0.00019178,2]
[368141319,1751037041050,-460.0,0.00019178,2]
[368141321,1751037041060,-460.0,0.00019178,2]
[368141323,1751037041069,-460.0,0.00019178,2]
[368141325,1751037041079,-460.0,0.00019178,2]
[368141327,1751037041089,-460.0,0.00019178,2]
[368141329,1751037041099,-460.0,0.00019178,2]
[368141331,1751037041108,-655.33,0.00019178,2]
[368141332,1751037041118,-460.0,0.00019178,2]
[368141334,1751037041127,-460.0,0.00019178,2]
[368141336,1751037041137,-460.0,0.00019178,2]
[368141338,1751037041146,-460.0,0.00019178,2]
[368141340,1751037041155,-954.0,0.00019178,2]
[368141342,1751037041164,-460.0,0.00019178,2]
[368141344,1751037041175,-460.0,0.00019178,2]
[368141346,1751037041184,-460.0,0.00019178,2]
[368141348,1751037041194,-625.47,0.00019178,2]
[368141350,1751037041203,-460.0,0.00019178,2]
[368141352,1751037041212,-1073.39,0.00019178,2]
[368141354,1751037041222,-549.9748583,0.00019178,2]
[368141356,1751037041231,-460.0,0.00019178,2]
[368141358,1751037041240,-460.0,0.00019178,2]
[368141360,1751037041249,-460.0,0.00019178,2]
[368141362,1751037041259,-460.0,0.00019178,2]
[368141364,1751037041269,-460.0,0.00019178,2]
[368141366,1751037041278,-174.67052795,0.00019178,2]
[368141368,1751037041287,-460.0,0.00019178,2]
[368141370,1751037041296,-460.0,0.00019178,2]
[368141372,1751037041306,-460.0,0.00019178,2]
[368141374,1751037041315,-460.0,0.00019178,2]
[368141376,1751037041325,-460.0,0.00019178,2]
[368141378,1751037041334,-460.0,0.00019178,2]
[368141380,1751037041344,-4296.07,0.00019178,2]
[368141382,1751037041353,-460.53345415,0.00019178,2]
[368141384,1751037041362,-2582.88,0.00019178,2]
[368141386,1751037041372,-460.0,0.00019178,2]
[368141388,1751037041381,-460.0,0.00019178,2]
[368141390,1751037041395,-477.84,0.00019178,2]
[368141392,1751037041404,-460.0,0.00019178,2]
[368141394,1751037041413,-2512.75,0.00019178,2]
[368141396,1751037041422,-460.0,0.00019178,2]
[368141398,1751037041433,-460.0,0.00019178,2]
[368141400,1751037041443,-165.754722,0.00019178,2]
[368141402,1751037041452,-100000.0,0.00019329,2]
[368141404,1751037041462,-650.15,0.0001945,2]
[368141406,1751037041472,-500.0,0.00019451,2]
[368141408,1751037041481,-650.15,0.00019451,2]
[368141410,1751037041491,-500.0,0.00019452,2]
[368141412,1751037041500,-500.0,0.00019452,2]
[368141414,1751037041509,-460.0,0.00019452,2]
[368141415,1751037041519,-460.0,0.00019452,2]
[368141417,1751037041535,-460.0,0.00019452,2]
[368141419,1751037041545,-460.0,0.00019452,2]
[368141421,1751037041555,-460.0,0.00019452,2]
[368141423,1751037041564,-460.0,0.00019452,2]
[368141425,1751037041574,-460.0,0.00019452,2]
[368141427,1751037041583,-460.0,0.00019452,2]
[368141429,1751037041593,-460.0,0.00019452,2]
[368141431,1751037041602,-483.25,0.00019452,2]
[368141433,1751037041612,-307.0423032,0.00019452,2]
[368141435,1751037041622,-460.0,0.00019452,2]
[368141437,1751037041631,-460.0,0.00019452,2]
[368141439,1751037041640,-460.0,0.00019452,2]
[368141441,1751037041650,-460.0,0.00019452,2]
[368141443,1751037041659,-420.15,0.00019452,2]
[368141445,1751037041668,-460.0,0.00019452,2]
[368141447,1751037041678,-412.33803501,0.00019452,2]
[368141449,1751037041687,-460.0,0.00019452,2]
[368141451,1751037041696,-460.0,0.00019452,2]
[368141453,1751037041705,-460.0,0.00019452,2]
[368141455,1751037041714,-460.0,0.00019452,2]
[368141457,1751037041724,-460.0,0.00019452,2]
[368141459,1751037041733,-460.0,0.00019452,2]
[368141461,1751037041742,-460.0,0.00019452,2]
[368141463,1751037041751,-563.84,0.00019452,2]
[368141464,1751037041761,-514.72,0.00019452,2]
[368141466,1751037041771,-1049.26,0.00019452,2]
[368141468,1751037041780,-460.0,0.00019452,2]
[368141471,1751037041790,-460.0,0.00019452,2]
[368141473,1751037041801,-460.0,0.00019452,2]
[368141474,1751037041810,-460.0,0.00019452,2]
[368141476,1751037041820,-638.05,0.00019452,2]
[368141478,1751037041829,-460.0,0.00019452,2]
[368141480,1751037041838,-460.0,0.00019452,2]
[368141483,1751037041848,-460.0,0.00019452,2]
[368141484,1751037041857,-460.0,0.00019452,2]
[368141486,1751037041866,-510.36,0.00019452,2]
[368141488,1751037041876,-1068.57,0.00019452,2]
[368141491,1751037041885,-460.0,0.00019452,2]
[368141493,1751037041895,-460.0,0.00019452,2]
[368141494,1751037041904,-460.0,0.00019452,2]
[368141496,1751037041914,-546.21,0.00019452,2]
[368141498,1751037041923,-460.0,0.00019452,2]
[368141500,1751037041932,-460.0,0.00019452,2]
[368141502,1751037041941,-460.0,0.00019452,2]
[368141504,1751037041950,-460.0,0.00019452,2]
[368141506,1751037041961,-460.0,0.00019452,2]
[368141508,1751037041971,-935.0,0.00019452,2]
[368141510,1751037041980,-460.0,0.00019452,2]
[368141512,1751037041989,-460.0,0.00019452,2]
[368141514,1751037041998,-460.0,0.00019452,2]
[368141516,1751037042007,-460.0,0.00019452,2]
[368141518,1751037042016,-460.0,0.00019452,2]
[368141520,1751037042026,-1211.91,0.00019452,2]
[368141522,1751037042035,-522.14,0.00019452,2]
[368141524,1751037042044,-460.0,0.00019452,2]
[368141526,1751037042053,-460.0,0.00019452,2]
[368141528,1751037042062,-1142.35,0.00019452,2]
[368141529,1751037042071,-2637.29,0.00019452,2]
[368141531,1751037042081,-460.0,0.00019452,2]
[368141534,1751037042090,-460.0,0.00019452,2]
[368141535,1751037042100,-460.0,0.00019452,2]
[368141538,1751037042110,-637.29,0.00019452,2]
[368141539,1751037042119,-514.1,0.00019452,2]
[368141542,1751037042129,-460.0,0.00019452,2]
[368141543,1751037042138,-289.62656306,0.00019452,2]
[368141545,1751037042148,-460.0,0.00019452,2]
[368141547,1751037042157,-460.0,0.00019452,2]
[368141549,1751037042166,-460.0,0.00019452,2]
[368141551,1751037042177,-460.0,0.00019452,2]
[368141553,1751037042186,-460.0,0.00019452,2]
[368141555,1751037042196,-460.0,0.00019452,2]
[368141557,1751037042206,-460.0,0.00019452,2]
[368141559,1751037042215,-460.0,0.00019452,2]
[368141561,1751037042224,-460.0,0.00019452,2]
[368141563,1751037042234,-1343.81,0.00019452,2]
[368141565,1751037042243,-460.0,0.00019452,2]
[368141567,1751037042252,-460.0,0.00019452,2]
[368141569,1751037042262,-462.27,0.00019452,2]
[368141571,1751037042272,-460.0,0.00019452,2]
[368141573,1751037042281,-545.1987383,0.00019452,2]
[368141575,1751037042290,-460.0,0.00019452,2]
[368141577,1751037042300,-460.0,0.00019452,2]
[368141579,1751037042310,-575.82,0.00019452,2]
[368141581,1751037042319,-460.0,0.00019452,2]
[368141583,1751037042328,-460.0,0.00019452,2]
[368141585,1751037042338,-460.0,0.00019452,2]
[368141587,1751037042348,-460.0,0.00019452,2]
[368141589,1751037042357,-460.0,0.00019452,2]
[368141591,1751037042367,-304.43901757,0.00019452,2]
[368141593,1751037042376,-576.2,0.00019452,2]
[368141595,1751037042387,-460.0,0.00019452,2]
[368141597,1751037042398,-461.60995275,0.00019452,2]
[368141599,1751037042407,-317.62655845,0.00019452,2]
[368141601,1751037042417,-1445.24,0.00019452,2]
[368141603,1751037042426,-571.9,0.00019452,2]
[368141605,1751037042436,-500.0,0.00019452,2]
[368141607,1751037042446,-460.0,0.00019452,2]
[368141609,1751037042456,-460.0,0.00019452,2]
[368141611,1751037042468,-460.0,0.00019452,2]
[368141613,1751037042478,-460.0,0.00019452,2]
[368141615,1751037042487,-2195.56,0.00019452,2]
[368141617,1751037042497,-1640.62,0.00019452,2]
[368141619,1751037042507,-460.0,0.00019452,2]
[368141621,1751037042517,-460.0,0.00019452,2]
[368141623,1751037042526,-460.0,0.00019452,2]
[368141625,1751037042536,-258.84722206,0.00019452,2]
[368141627,1751037042546,-460.0,0.00019452,2]
[368141630,1751037042560,-460.0,0.00019452,2]
[368141632,1751037042570,-460.0,0.00019452,2]
[368141634,1751037042580,-468.05,0.00019452,2]
[368141636,1751037042589,-460.0,0.00019452,2]
[368141638,1751037042599,-460.0,0.00019452,2]
[368141641,1751037042609,-460.0,0.00019452,2]
[368141644,1751037042619,-460.0,0.00019452,2]
[368141646,1751037042630,-460.0,0.00019452,2]
[368141648,1751037042639,-655.33,0.00019452,2]
[368141650,1751037042649,-279.76,0.00019452,2]
[368141652,1751037042659,-460.0,0.00019452,2]
[368141654,1751037042668,-460.0,0.00019452,2]
[368141656,1751037042677,-954.0,0.00019452,2]
[368141658,1751037042687,-460.0,0.00019452,2]
[368141660,1751037042696,-429.41846862,0.00019452,2]
[368141662,1751037042706,-625.47,0.00019452,2]
[368141664,1751037042715,-1073.39,0.00019452,2]
[368141666,1751037042725,-460.0,0.00019452,2]
[368141668,1751037042734,-460.0,0.00019452,2]
[368141670,1751037042745,-460.0,0.00019452,2]
[368141672,1751037042755,-460.0,0.00019452,2]
[368141674,1751037042764,-520.3,0.00019452,2]
[368141676,1751037042774,-460.0,0.00019452,2]
[368141678,1751037042784,-436.69554052,0.00019452,2]
[368141680,1751037042793,-4296.07,0.00019452,2]
[368141682,1751037042806,-2582.88,0.00019452,2]
[368141684,1751037042816,-460.0,0.00019452,2]
[368141687,1751037042826,-477.84,0.00019452,2]
[368141689,1751037042835,-460.0,0.00019452,2]
[368141691,1751037042845,-2512.75,0.00019452,2]
[368141693,1751037042854,-500.0,0.00019558,2]
[368141695,1751037042863,-500.0,0.00019558,2]
[368141697,1751037042873,-500.0,0.00019558,2]
[368141699,1751037042883,-500.8586686,0.00019558,2]
[368141701,1751037042892,-500.0,0.00019558,2]
[368141703,1751037042901,-500.0,0.00019558,2]
[368141705,1751037042911,-500.0,0.00019649,2]
[368141707,1751037042920,-501.32449287,0.00019649,2]
[368141709,1751037042930,-500.0,0.00019649,2]
[368141711,1751037042939,-500.0,0.0001971,2]
[368141713,1751037042948,-500.0,0.0001971,2]
[368141715,1751037042958,-363.56,0.00019716,3]
[368141717,1751037042967,-650.15,0.00019724,2]
[368141718,1751037042977,-650.15,0.00019725,2]
[368141720,1751037042987,-460.0,0.00019726,2]
[368141722,1751037042997,-460.0,0.00019726,2]
[368141724,1751037043007,-460.0,0.00019726,2]
[368141726,1751037043016,-392.05350724,0.00019726,2]
[368141728,1751037043025,-460.0,0.00019726,2]
[368141730,1751037043035,-437.04,0.00019726,2]
[368141732,1751037043044,-483.25,0.00019726,2]
[368141734,1751037043054,-460.0,0.00019726,2]
[368141736,1751037043063,-460.0,0.00019726,2]
[368141739,1751037043073,-460.0,0.00019726,2]
[368141741,1751037043083,-460.0,0.00019726,2]
[368141743,1751037043092,-460.0,0.00019726,2]
[368141745,1751037043101,-460.0,0.00019726,2]
[368141747,1751037043110,-460.0,0.00019726,2]
[368141749,1751037043119,-514.72,0.00019726,2]
[368141751,1751037043128,-1049.26,0.00019726,2]
[368141753,1751037043137,-460.0,0.00019726,2]
[368141755,1751037043146,-460.0,0.00019726,2]
[368141757,1751037043156,-460.0,0.00019726,2]
[368141758,1751037043165,-460.0,0.00019726,2]
[368141760,1751037043176,-638.05,0.00019726,2]
[368141762,1751037043185,-460.0,0.00019726,2]
[368141764,1751037043195,-460.0,0.00019726,2]
[368141766,1751037043204,-460.0,0.00019726,2]
[368141771,1751037043306,-510.36,0.00019726,2]
[368141772,1751037043330,-1068.57,0.00019726,2]
[368141774,1751037043339,-460.0,0.00019726,2]
[368141776,1751037043348,-460.0,0.00019726,2]
[368141778,1751037043357,-460.0,0.00019726,2]
[368141780,1751037043366,-546.21,0.00019726,2]
[368141782,1751037043375,-460.0,0.00019726,2]
[368141785,1751037043387,-460.0,0.00019726,2]
[368141787,1751037043398,-460.0,0.00019726,2]
[368141790,1751037043407,-460.0,0.00019726,2]
[368141793,1751037043416,-460.0,0.00019726,2]
[368141795,1751037043426,-935.0,0.00019726,2]
[368141797,1751037043436,-460.0,0.00019726,2]
[368141799,1751037043445,-460.0,0.00019726,2]
[368141801,1751037043455,-460.0,0.00019726,2]
[368141803,1751037043465,-460.0,0.00019726,2]
[368141806,1751037043475,-1211.91,0.00019726,2]
[368141808,1751037043484,-522.14,0.00019726,2]
[368141810,1751037043494,-460.0,0.00019726,2]
[368141812,1751037043503,-1142.35,0.00019726,2]
[368141814,1751037043512,-2637.29,0.00019726,2]
[368141816,1751037043522,-460.0,0.00019726,2]
[368141818,1751037043531,-603.46305526,0.00019726,2]
[368141820,1751037043540,-460.0,0.00019726,2]
[368141822,1751037043550,-637.29,0.00019726,2]
[368141824,1751037043560,-514.1,0.00019726,2]
[368141826,1751037043570,-460.0,0.00019726,2]
[368141827,1751037043579,-460.0,0.00019726,2]
[368141829,1751037043588,-460.0,0.00019726,2]
[368141831,1751037043598,-460.0,0.00019726,2]
[368141833,1751037043608,-460.0,0.00019726,2]
[368141835,1751037043618,-460.0,0.00019726,2]
[368141837,1751037043627,-460.0,0.00019726,2]
[368141839,1751037043637,-460.0,0.00019726,2]
[368141841,1751037043646,-1343.81,0.00019726,2]
[368141843,1751037043655,-460.0,0.00019726,2]
[368141845,1751037043665,-462.27,0.00019726,2]
[368141847,1751037043675,-460.0,0.00019726,2]
[368141849,1751037043684,-575.82,0.00019726,2]
[368141851,1751037043694,-460.0,0.00019726,2]
[368141853,1751037043703,-460.0,0.00019726,2]
[368141855,1751037043713,-358.75722486,0.00019726,2]
[368141857,1751037043723,-429.54520443,0.00019726,2]
[368141859,1751037043732,-460.0,0.00019726,2]
[368141861,1751037043742,-576.2,0.00019726,2]
[368141863,1751037043751,-460.0,0.00019726,2]
[368141865,1751037043760,-1445.24,0.00019726,2]
[368141867,1751037043770,-571.9,0.00019726,2]
[368141869,1751037043779,-460.0,0.00019726,2]
[368141871,1751037043788,-460.0,0.00019726,2]
[368141873,1751037043797,-460.0,0.00019726,2]
[368141875,1751037043808,-2195.56,0.00019726,2]
[368141877,1751037043819,-1640.62,0.00019726,2]
[368141879,1751037043828,-460.0,0.00019726,2]
[368141881,1751037043838,-460.0,0.00019726,2]
[368141883,1751037043847,-460.0,0.00019726,2]
[368141885,1751037043858,-460.0,0.00019726,2]
[368141887,1751037043867,-460.0,0.00019726,2]
[368141889,1751037043879,-295.4470454,0.00019726,2]
[368141891,1751037043888,-468.05,0.00019726,2]
[368141893,1751037043898,-460.0,0.00019726,2]
[368141895,1751037043907,-460.0,0.00019726,2]
[368141897,1751037043917,-460.0,0.00019726,2]
[368141899,1751037043926,-460.0,0.00019726,2]
[368141901,1751037043935,-655.33,0.00019726,2]
[368141904,1751037043945,-460.0,0.00019726,2]
[368141906,1751037043955,-954.0,0.00019726,2]
[368141908,1751037043966,-460.0,0.00019726,2]
[368141909,1751037043976,-625.47,0.00019726,2]
[368141911,1751037043985,-1073.39,0.00019726,2]
[368141914,1751037043994,-460.0,0.00019726,2]
[368141917,1751037044004,-460.0,0.00019726,2]
[368141920,1751037044013,-460.0,0.00019726,2]
[368141923,1751037044023,-4296.07,0.00019726,2]
[368141926,1751037044033,-2582.88,0.00019726,2]
[368141929,1751037044042,-477.84,0.00019726,2]
[368141931,1751037044052,-460.0,0.00019726,2]
[368141933,1751037044062,-2512.75,0.00019726,2]
[368141935,1751037044071,-500.0,0.000198,2]
[368141937,1751037044080,-500.0,0.00019833,2]
[368141939,1751037044090,-500.0,0.00019833,2]
[368141941,1751037044099,-500.0,0.00019833,2]
[368141943,1751037044109,-500.0,0.00019833,2]
[368141945,1751037044118,-379.00249616,0.00019852,2]
[368141947,1751037044128,-500.0,0.00019852,2]
[368141949,1751037044137,-500.0,0.00019852,2]
[368141951,1751037044146,-502.29752276,0.00019855,2]
[368141953,1751037044156,-500.0,0.00019866,2]
[368141955,1751037044165,-500.0,0.00019866,2]
[368141957,1751037044174,-500.0,0.00019866,2]
[368141959,1751037044184,-554.97647579,0.00019884,2]
[368141961,1751037044193,-500.0,0.00019884,2]
[368141963,1751037044203,-9157.57821158,0.000199,2]
[368141965,1751037044212,-501.86867376,0.00019919,2]
[368141967,1751037044222,-500.0,0.00019919,2]
[368141969,1751037044231,-500.0,0.00019919,2]
[368141971,1751037044241,-500.0,0.00019919,2]
[368141973,1751037044250,-500.0,0.00019919,2]
[368141975,1751037044259,-500.0,0.0001998,2]
[368141977,1751037044269,-650.15,0.00019998,2]
[368141979,1751037044279,-650.15,0.00019999,2]
[368141981,1751037044288,-500.0,0.00019999,2]
[368141983,1751037044298,-500.0,0.00019999,2]
[368141985,1751037044309,-500.0,0.00019999,2]
[368141987,1751037044318,-500.0,0.00019999,2]
[368141989,1751037044328,-500.0,0.00019999,2]
[368141991,1751037044338,-500.0,0.00019999,2]
[368141993,1751037044347,-500.0,0.00019999,2]
[368141995,1751037044356,-500.0,0.00019999,2]
[368141997,1751037044365,-500.0,0.00019999,2]
[368141999,1751037044375,-500.0,0.00019999,2]
[368142001,1751037044384,-626.99388357,0.00019999,2]
[368142003,1751037044394,-500.0,0.00019999,2]
[368142005,1751037044404,-500.0,0.00019999,2]
[368142007,1751037044417,-500.0,0.00019999,2]
[368142009,1751037044427,-500.0,0.00019999,2]
[368142011,1751037044436,-535.14875687,0.00019999,2]
[368142013,1751037044446,-500.0,0.00019999,2]
[368142015,1751037044456,-350.0,0.00019999,2]
[368142017,1751037044466,-500.0,0.00019999,2]
[368142019,1751037044475,-500.0,0.00019999,2]
[368142021,1751037044485,-500.0,0.00019999,2]
[368142023,1751037044494,-500.0,0.00019999,2]
[368142025,1751037044504,-189.12633493,0.0002,2]
[368142027,1751037044514,-483.25,0.0002,2]
[368142029,1751037044523,-342.02785927,0.0002,2]
[368142031,1751037044532,-394.20766857,0.0002,2]
[368142033,1751037044542,-315.44,0.0002,2]
[368142035,1751037044551,-460.0,0.0002,2]
[368142037,1751037044561,-514.72,0.0002,2]
[368142039,1751037044571,-1049.26,0.0002,2]
[368142041,1751037044580,-460.0,0.0002,2]
[368142043,1751037044590,-460.0,0.0002,2]
[368142045,1751037044599,-460.0,0.0002,2]
[368142047,1751037044609,-638.05,0.0002,2]
[368142049,1751037044619,-460.0,0.0002,2]
[368142051,1751037044628,-460.0,0.0002,2]
[368142053,1751037044638,-460.0,0.0002,2]
[368142055,1751037044647,-460.0,0.0002,2]
[368142057,1751037044657,-510.36,0.0002,2]
[368142059,1751037044666,-1068.57,0.0002,2]
[368142061,1751037044675,-460.0,0.0002,2]
[368142063,1751037044684,-460.0,0.0002,2]
[368142065,1751037044694,-460.0,0.0002,2]
[368142067,1751037044703,-546.21,0.0002,2]
[368142069,1751037044713,-460.0,0.0002,2]
[368142071,1751037044723,-460.0,0.0002,2]
[368142073,1751037044733,-460.0,0.0002,2]
[368142075,1751037044742,-460.0,0.0002,2]
[368142077,1751037044751,-460.0,0.0002,2]
[368142079,1751037044761,-935.0,0.0002,2]
[368142081,1751037044770,-460.0,0.0002,2]
[368142083,1751037044780,-460.0,0.0002,2]
[368142085,1751037044789,-460.0,0.0002,2]
[368142087,1751037044799,-460.0,0.0002,2]
[368142089,1751037044809,-1211.91,0.0002,2]
[368142091,1751037044820,-522.14,0.0002,2]
[368142093,1751037044829,-460.0,0.0002,2]
[368142095,1751037044839,-1142.35,0.0002,2]
[368142097,1751037044849,-2637.29,0.0002,2]